Cogmind - Beta 16 @@@ ROGUE MODE // 2025.11.11 @ 19:59:17 Player: Buyo Result: Destroyed by S-27 Virus with Autogun Performance ------------- Evolutions (5) 2500 Regions Visited (10) 2000 Robots Destroyed (70) 350 Value Destroyed (2457) 2457 Prototype IDs (6) 120 Alien Tech Used (0) 0 Bonus (11) 11 TOTAL SCORE: 7438 Bonus ------- High Alert Combat Kills 11 Cogmind --------- Core Integrity 0/1000 Matter 5/300 Energy 70/100 System Corruption 8% Temperature Cool (0) Movement Core (50) Location -5/Factory Parts ------- > --- POWER (3) -------- (None) > --- PROPULSION (5) --- (None) > --- UTILITY (5) ------ Enhanced Optical Array Transmission Jammer > --- WEAPON (4) ------- (None) > --- INVENTORY (5) ---- Fission Core Particle Cannon Peak State ------------ > --- POWER ------------ Micro Nuclear Core Micro Nuclear Core > --- PROPULSION ------- Cooled Cesium-ion Thruster Cooled Cesium-ion Thruster Biomechanical Wings Nuclear Pulse Array > --- UTILITY ---------- Improved Heat Sink Enhanced Optical Array Advanced Sensor Array Improved Shield Generator Long-range Tractor Beam > --- WEAPON ----------- Cooled Pulse Rifle Heavy Ion Cannon > --- INVENTORY -------- Cooled VTOL Module Field Propulsion Drive Field Propulsion Drive Particle Cannon [Rating: 71] Favorites ----------- Power Nuclear Core Engine Improved Deuterium Engine Power Core Nuclear Core Propulsion Medium Treads Treads Medium Treads Leg Aluminum Leg Hover Unit Antigrav System Flight Unit Cooled Cesium-ion Thruster Utility Large Battery Device Improved Heat Sink Storage Large Battery Processor Target Analyzer Hackware Hacking Suite Protection Improved Medium Armor Plating Weapon Gatling Laser Energy Gun Gatling Laser Energy Cannon Ion Cannon Ballistic Gun Flak Gun Launcher Rocket Launcher Slashing Weapon Katana Build | -11 -10 -9 -8 -7 -7 -7 -6 -5 -5 -5 ------- Run | Yrd Mat Mat Mat Fac Was Fac Fac Fac Was Fac Slots Evolved 10 | . . 2 2 2 . . 2 2 . . Power 2 | . . 1 . . . . . 1 . . Propulsion 3 | . . . 1 . . . 1 1 . . Utility 3 | . . 1 . 1 . . 1 . . . Weapon 2 | . . . 1 1 . . . . . . Parts Attached 83 | 6 6 9 17 18 2 7 5 6 . 7 Power 20 | 2 1 3 4 6 . 1 1 . . 2 Engine 9 | 2 1 1 1 4 . . . . . . Core 11 | . . 2 3 2 . 1 1 . . 2 Reactor . | . . . . . . . . . . . Propulsion 25 | 2 1 2 5 3 1 3 3 2 . 3 Treads 8 | . . 2 5 1 . . . . . . Leg 4 | 2 1 . . 1 . . . . . . Wheel . | . . . . . . . . . . . Hover 1 | . . . . . 1 . . . . . Flight 12 | . . . . 1 . 3 3 2 . 3 Utility 16 | 1 2 3 1 2 1 1 1 3 . 1 Device 7 | . 1 . . 1 1 1 . 2 . 1 Storage 4 | 1 . 2 1 . . . . . . . Processor 2 | . . 1 . . . . 1 . . . Hackware 1 | . . . . . . . . 1 . . Protection 2 | . 1 . . 1 . . . . . . Artifact . | . . . . . . . . . . . Weapon 22 | 1 2 1 7 7 . 2 . 1 . 1 Energy Gun 12 | 1 2 1 4 3 . 1 . . . . Energy Cannon 3 | . . . . 1 . 1 . 1 . . Ballistic Gun 3 | . . . . 2 . . . . . 1 Ballistic Cannon . | . . . . . . . . . . . Launcher 2 | . . . 1 1 . . . . . . Special Weapon . | . . . . . . . . . . . Impact Weapon . | . . . . . . . . . . . Slashing Weapon 2 | . . . 2 . . . . . . . Piercing Weapon . | . . . . . . . . . . . Special Melee Weapon . | . . . . . . . . . . . Unidentified Prototypes 4 | . . . . 1 . 1 2 . . . Parts Lost 39 | . 1 2 4 17 . 1 . . 1 13 Power 10 | . . . 3 4 . . . . . 3 Propulsion 14 | . . . 1 6 . 1 . . . 6 Utility 7 | . . 1 . 2 . . . . 1 3 Weapon 8 | . 1 1 . 5 . . . . . 1 Highest Loss Streak 13 | . 1 1 2 10 . 1 . . 1 13 To Critical Strikes 1 | . . . . . . . . . . 1 Average Backups 9 | 1 3 6 11 12 4 4 4 4 4 4 Power 1 | . 1 1 1 1 1 1 . . . . Propulsion 1 | . 2 2 1 . . . 1 2 3 2 Utility 3 | . . 2 5 6 1 1 1 . . . Weapon 2 | . . . 3 3 1 1 2 1 1 1 Tool/Special . | . . . . . . . . . . . Unused Backups 19 | . . 1 6 9 . . 1 1 . 1 Power 3 | . . . 1 1 . . . . . 1 Propulsion 4 | . . . 2 1 . . 1 . . . Utility 10 | . . . 2 7 . . . 1 . . Weapon 1 | . . 1 . . . . . . . . Tool/Special 1 | . . . 1 . . . . . . . Average Slot Usage (%) 79 | . 95 91 93 83 9 36 53 68 76 38 Engine 6 | . 14 12 3 10 3 4 . . . . Core 6 | . . 9 13 2 . 2 9 11 11 . Treads 14 | . . 21 22 18 . . . . . . Leg 2 | . 28 . . . . . . . . . Flight 3 | . . . . . . 7 23 23 23 13 Device 4 | . 8 . . 5 . 8 13 14 23 11 Storage 11 | . 14 13 18 12 . . . . . . Processor 3 | . . 4 9 1 . . . 5 5 5 Protection 2 | . 4 7 . 4 . . . . . . Energy Gun 11 | . 24 21 14 7 3 4 6 5 5 2 Energy Cannon 2 | . . . . 5 . 1 . 4 5 2 Launcher 2 | . . . 3 5 . . . . . . Slashing Weapon 4 | . . . 8 6 . . . . . . Peak Build Rating 71 | 5 7 17 38 46 10 30 49 71 71 52 Average Rating 28 | 3 6 11 30 36 4 19 38 63 67 37 On Entrance 25 | . 5 7 17 35 7 10 30 49 71 52 Avg Prop Armor Cover (%) 4 | . . . 6 5 . 5 . . 2 2 Naked Turns 39 | . . . . 1 38 . . . . . Heaviest Build 68 | 12 16 31 53 68 7 15 21 31 31 18 Greatest Support 84 | 20 20 40 84 76 11 17 23 32 31 20 Greatest Overweight (x) 4 | 1 . . 1 2 2 . . . . 4 Average Overweight (x) . | . . . . . . . . . . . Largest Inventory Capacity 15 | 8 8 10 15 15 5 5 5 5 5 5 Average Capacity 10 | 6 8 9 13 13 5 5 5 5 5 5 Most Carried 15 | 3 5 10 15 15 5 5 5 5 5 5 Average Carried 9 | 1 3 6 12 12 4 4 4 4 4 4 Final Capacity 15 | 8 8 10 15 5 5 5 5 5 5 5 Final Carried 13 | 3 4 7 13 4 3 5 5 4 5 2 Class Distribution -------------------- 62% | Mutant 18% | Tank 11% | Gunner 7% | Sprinter Dominant Class ---------------- Mutant | -10/Materials Mutant | -9/Materials Mutant | -8/Materials Tank | -7/Factory Mutant | -7/Waste Mutant | -7/Factory Sprinter | -6/Factory Sprinter | -5/Factory Sprinter | -5/Waste Mutant | -5/Factory Resources | -11 -10 -9 -8 -7 -7 -7 -6 -5 -5 -5 ----------- Run | Yrd Mat Mat Mat Fac Was Fac Fac Fac Was Fac Matter Collected 1141 | 232 152 97 314 306 . . . . . 40 Remotely . | . . . . . . . . . . . Salvage Created 2490 | . 312 261 938 926 . . . 27 . 26 Parts 131 | . 10 16 53 46 . . . 3 . 3 Haulers Intercepted . | . . . . . . . . . . . Recyclers Shooed . | . . . . . . . . . . . Parts Field Recycled . | . . . . . . . . . . . Retrieved Matter . | . . . . . . . . . . . Parts Self-Destructed . | . . . . . . . . . . . Prevented . | . . . . . . . . . . . Parts Restored . | . . . . . . . . . . . Kills | -11 -10 -9 -8 -7 -7 -7 -6 -5 -5 -5 ------- Run | Yrd Mat Mat Mat Fac Was Fac Fac Fac Was Fac Combat Hostiles Destroyed 59 | . 5 9 24 20 . . . . . 1 Melee 9 | . . . 6 3 . . . . . . Guns 32 | . 4 8 13 7 . . . . . . Cannons 6 | . . . . 5 . . . . . 1 AOE 7 | . . . 3 4 . . . . . . Classes Destroyed 15 | . 3 2 7 3 . . . . . . Worker 2 | . . . 1 1 . . . . . . Builder 1 | . . . 1 . . . . . . . Tunneler 1 | . . . 1 . . . . . . . Recycler 2 | . 1 . 1 . . . . . . . Mechanic 1 | . . . . 1 . . . . . . Operator 2 | . 1 . . . . . . 1 . . Watcher 2 | . . . 1 1 . . . . . . Swarmer 15 | . . 4 7 3 . . . . . 1 Grunt 26 | . 5 4 10 7 . . . . . . Brawler 1 | . . . 1 . . . . . . . Duelist 1 | . . . 1 . . . . . . . Sentry 6 | . . 1 4 1 . . . . . . Specialist 1 | . . . . 1 . . . . . . Hunter 4 | . . . 1 3 . . . . . . Programmer 5 | . . . . 5 . . . . . . Best Kill Streak 6 | . 2 4 6 6 . . . 1 . 1 Combat Bots Only 6 | . 2 4 6 4 . . . . . 1 Max Kills in Single Turn 3 | . 1 2 3 2 . . . 1 . 1 Gunslinging . | . . . . . . . . . . . Exploded 2 | . . . 1 2 . . . . . . Melee 1 | . . . 1 1 . . . . . . Uniques/NPCs Destroyed . | . . . . . . . . . . . Combat | -11 -10 -9 -8 -7 -7 -7 -6 -5 -5 -5 -------- Run | Yrd Mat Mat Mat Fac Was Fac Fac Fac Was Fac Hostile Shots Fired 705 | . 41 44 146 226 . 51 . 1 1 195 Missed 248 | . 10 14 40 65 . 25 . 1 . 93 Hits 457 | . 31 30 106 161 . 26 . . 1 102 Melee 4 | . . . 3 . . . . . 1 . Projectile 453 | . 31 30 103 161 . 26 . . . 102 AOE 1 | . . . . . . 1 . . . . Critical Strikes 19 | . 1 2 5 8 . . . . 1 2 Part Disruptions 2 | . . . . 2 . . . . . . Damage Taken 6608 | . 403 331 1440 2312 . 235 . . 26 1861 Core 1750 | . 33 38 206 377 . 82 . . . 1014 Absorbed by Shields 31 | . . . . . . 22 . . 9 . Core Remaining (%) 78 | 100 86 90 62 . . 34 100 . . . Volleys Fired 190 | . 36 30 57 53 . 4 2 2 . 6 Largest 3 | . 2 2 2 3 . 1 1 2 . 1 Hottest 220 | . 100 90 160 220 . 20 20 85 . 65 Shots Fired 291 | . 48 55 78 93 . 6 2 4 . 5 Gun 243 | . 48 55 71 56 . 6 2 2 . 3 Cannon 34 | . . . . 30 . . . 2 . 2 Launcher 14 | . . . 7 7 . . . . . . Special . | . . . . . . . . . . . Kinetic 11 | . . . . 11 . . . . . . Thermal 260 | . 48 55 71 69 . 6 2 4 . 5 Explosive 14 | . . . 7 7 . . . . . . Electromagnetic 6 | . . . . 6 . . . . . . Robot Hit Streak 19 | . 12 8 19 9 . 1 1 3 . 1 Robot Miss Streak 6 | . 3 6 5 5 . 3 1 . . 2 Penetration Max . | . . . . . . . . . . . Secondary Targets . | . . . . . . . . . . . Shots Hit Robots 239 | . 35 33 83 81 . 1 1 3 . 2 Core Hits 141 | . 14 13 54 56 . 1 . 2 . 1 Critical Kills 1 | . . . . 1 . . . . . . Critical Parts Destroyed . | . . . . . . . . . . . Critical Strikes 20 | . 5 5 6 3 . . . 1 . . Burn 13 | . 5 5 2 . . . . 1 . . Meltdown 1 | . . . . 1 . . . . . . Sever 6 | . . . 4 2 . . . . . . Melee Attacks 43 | . . . 28 15 . . . . . . Impact . | . . . . . . . . . . . Slashing 43 | . . . 28 15 . . . . . . Piercing . | . . . . . . . . . . . Sneak Attacks 1 | . . . 1 . . . . . . . Combat Hostiles . | . . . . . . . . . . . Follow-up Attacks . | . . . . . . . . . . . Damage Inflicted 5620 | . 422 381 2561 2088 . 18 20 63 . 67 Guns 3004 | . 422 381 1102 1007 . 18 20 36 . 18 Cannons 452 | . . . . 397 . . . 27 . 28 Explosions 1080 | . . . 771 309 . . . . . . Melee 1056 | . . . 681 375 . . . . . . Ramming 28 | . . . 7 . . . . . . 21 Kinetic 164 | . . . . 164 . . . . . . Thermal 3203 | . 422 381 1102 1151 . 18 20 63 . 46 Explosive 1080 | . . . 771 309 . . . . . . Electromagnetic 89 | . . . . 89 . . . . . . Impact . | . . . . . . . . . . . Slashing 1056 | . . . 681 375 . . . . . . Piercing . | . . . . . . . . . . . Highest Corruption 16 | . . . 1 5 14 16 . . 6 8 Average Corruption 4 | . . . 1 2 12 15 . . 6 6 Corruption Purged . | . . . . . . . . . . . Corruption Blocked . | . . . . . . . . . . . Effects 35 | . . . 4 11 4 9 . . 1 6 Message Errors 9 | . . . 1 2 2 2 . . . 2 Matter Fused 8 | . . . 1 3 1 1 . . . 2 Heat Flow Errors 5 | . . . . 2 1 2 . . . . Energy Discharges 3 | . . . 1 2 . . . . . . Parts Rejected 1 | . . . . . . . . . 1 . Parts Fused 1 | . . . . 1 . . . . . . Data Loss (major) 1 | . . . 1 . . . . . . . Misfires 2 | . . . . . . 2 . . . . Alerts 1 | . . . . . . . . . . 1 Misdirections 2 | . . . . . . 2 . . . . Weapon Failures 2 | . . . . 1 . . . . . 1 Overload Shots . | . . . . . . . . . . . Overflow Damage 79 | . . . 79 . . . . . . . Projectiles . | . . . . . . . . . . . Explosions 52 | . . . 52 . . . . . . . Melee 27 | . . . 27 . . . . . . . Knockbacks . | . . . . . . . . . . . Impact . | . . . . . . . . . . . Kinetic . | . . . . . . . . . . . Secondary . | . . . . . . . . . . . Self-Inflicted Damage 37 | . . . . 28 . . . . . 9 Shots 1 | . . . . 1 . . . . . . Rammed 8 | . . . 1 . . . . . . 7 Targets Rammed 8 | . . . 1 . . . . . . 7 Kicked . | . . . . . . . . . . . Crushed . | . . . . . . . . . . . Highest Temperature 520 | . 405 421 347 520 132 191 . . . . Average Temperature 154 | . 197 174 137 130 132 102 . . . . Received Heat Transfer 1413 | . 252 174 486 402 . 72 . . . 27 Effects 25 | . 5 11 5 4 . . . . . . Shutdowns 7 | . 1 4 . 2 . . . . . . Energy Bleed 7 | . 1 6 . . . . . . . . Interference 3 | . . . 3 . . . . . . . Matter Decay 3 | . 1 . 1 1 . . . . . . Short Circuit 2 | . 1 . 1 . . . . . . . Damage (minor) 3 | . 1 1 . 1 . . . . . . Siege Activations . | . . . . . . . . . . . Martial Activations . | . . . . . . . . . . . Shielding Activations . | . . . . . . . . . . . Robots Disrupted . | . . . . . . . . . . . Combat Hostiles . | . . . . . . . . . . . Robots Corrupted . | . . . . . . . . . . . Combat Hostiles . | . . . . . . . . . . . Parts Fried 1 | . . . . 1 . . . . . . Impact Corruptions . | . . . . . . . . . . . Robots Melted 5 | . 1 1 2 1 . . . . . . Combat Hostiles 5 | . 1 1 2 1 . . . . . . Parts Melted 26 | . 7 6 3 8 . . . 2 . . Heat Transferred 8205 | . 1629 1387 2753 2103 . 37 37 185 . 74 Parts Sabotaged . | . . . . . . . . . . . Parts Stolen . | . . . . . . . . . . . Parts Stripped . | . . . . . . . . . . . Power Chain Reactions . | . . . . . . . . . . . Alert | -11 -10 -9 -8 -7 -7 -7 -6 -5 -5 -5 ------- Run | Yrd Mat Mat Mat Fac Was Fac Fac Fac Was Fac Maximum Alert Level 2 | . . . 2 1 . . . . . . Low Security (%) 89 | 100 100 100 73 92 100 100 100 100 100 100 Level 1 9 | . . . 23 7 . . . . . . Level 2 1 | . . . 3 . . . . . . . Level 3 . | . . . . . . . . . . . Level 4 . | . . . . . . . . . . . Level 5 . | . . . . . . . . . . . High Security . | . . . . . . . . . . . Max Security . | . . . . . . . . . . . Peak Influence 409 | . 90 100 409 214 61 21 15 45 12 105 Initial 175 | . . 25 33 175 56 21 7 7 12 . Average 90 | . 43 45 146 122 47 3 3 14 8 13 Influence Increases 2068 | . 170 230 784 585 15 15 15 74 . 180 Destroy 0b10 Robot/C 1180 | . 100 180 480 400 . . . . . 20 Destroy 0b10 Robot/NC 55 | . 10 . 25 15 . . . 5 . . Destroy Leader 304 | . 30 30 132 102 . . . . . 10 Successful Hack 21 | . . 5 7 . . . . 9 . . Disable Machine 45 | . . . . 15 . . . 15 . 15 Destroy Structure 58 | . . . 35 23 . . . . . . Partial Spotted 45 | . . . . 15 15 . 15 . . . Lose Combat Pursuer 360 | . 30 15 105 15 . 15 . 45 . 135 Influence Decreases 2053 | . 110 210 479 809 145 31 15 54 35 165 Entered New Map 446 | . . 35 47 210 105 10 8 8 23 . Time Decay 1245 | . 100 155 392 429 40 21 7 46 10 45 Lost Part 362 | . 10 20 40 170 . . . . 2 120 Squads Dispatched 29 | . 3 1 8 8 . 4 1 1 . 3 Investigation 5 | . . . 2 1 . 2 . . . . Extermination 4 | . . . . 3 . . . . . 1 Reinforcement 17 | . 3 1 3 4 . 2 1 1 . 2 Assault . | . . . . . . . . . . . Garrison 3 | . . . 3 . . . . . . . Intercept . | . . . . . . . . . . . Searches Triggered . | . . . . . . . . . . . Construction Impeded 2 | . . . 1 1 . . . . . . Haulers Reinforced 1 | . . . . 1 . . . . . . Active Scanning Responses . | . . . . . . . . . . . Cargo Convoy Interrupts 1 | . . . . 1 . . . . . . Stealth | -11 -10 -9 -8 -7 -7 -7 -6 -5 -5 -5 --------- Run | Yrd Mat Mat Mat Fac Was Fac Fac Fac Was Fac Distress Signals 6 | . 1 2 3 . . . . . . . Communications Jammed . | . . . . . . . . . . . Distress Signals . | . . . . . . . . . . . Times Spotted 148 | . 10 15 37 29 5 16 2 5 3 26 Peak Tracking Total 16 | . 5 4 5 5 5 10 1 4 3 16 Tactical Retreats 15 | . 1 1 6 1 . 1 . 1 . 4 Traps | -11 -10 -9 -8 -7 -7 -7 -6 -5 -5 -5 ------- Run | Yrd Mat Mat Mat Fac Was Fac Fac Fac Was Fac Traps Triggered 8 | . . . 3 1 . 1 . 1 . 2 Indirectly . | . . . . . . . . . . . Trap Hack Attempts . | . . . . . . . . . . . Triggered . | . . . . . . . . . . . Disarmed . | . . . . . . . . . . . Reprogrammed . | . . . . . . . . . . . Reused . | . . . . . . . . . . . Traps Extracted . | . . . . . . . . . . . Installed . | . . . . . . . . . . . Triggered . | . . . . . . . . . . . Machines | -11 -10 -9 -8 -7 -7 -7 -6 -5 -5 -5 ---------- Run | Yrd Mat Mat Mat Fac Was Fac Fac Fac Was Fac Machines Disabled 3 | . . . . 1 . . . 1 . 1 Max in Single Turn 1 | . . . . 1 . . . 1 . 1 Machines Repaired . | . . . . . . . . . . . Machines Dismantled . | . . . . . . . . . . . Machines Sabotaged . | . . . . . . . . . . . Overloaded Fab Kills . | . . . . . . . . . . . Hacking | -11 -10 -9 -8 -7 -7 -7 -6 -5 -5 -5 --------- Run | Yrd Mat Mat Mat Fac Was Fac Fac Fac Was Fac Machines Accessed 12 | . . 2 1 . . 3 2 3 . 1 Terminals 12 | . . 2 1 . . 3 2 3 . 1 Fabricators . | . . . . . . . . . . . Repair Stations . | . . . . . . . . . . . Recycling Units . | . . . . . . . . . . . Scanalyzers . | . . . . . . . . . . . Garrison Access . | . . . . . . . . . . . Total Hacks 24 | . . 3 3 . . 10 2 5 . 1 Successful 14 | . . 3 3 . . 4 1 2 . 1 Failed 10 | . . . . . . 6 1 3 . . Catastrophic 1 | . . . . . . . 1 . . . Database Lockouts . | . . . . . . . . . . . Manual . | . . . . . . . . . . . Terminals 24 | . . 3 3 . . 10 2 5 . 1 Fabricators . | . . . . . . . . . . . Repair Stations . | . . . . . . . . . . . Recycling Units . | . . . . . . . . . . . Scanalyzers . | . . . . . . . . . . . Garrison Access . | . . . . . . . . . . . Terminal Hacks 14 | . . 3 3 . . 4 1 2 . 1 Record 2 | . . 1 . . . . . 1 . . Prototype ID Bank 1 | . . 1 . . . . . . . . Open DSF 3 | . . . . . . 1 1 1 . . Alert Level 3 | . . . 1 . . 2 . . . . Transport Status 1 | . . . . . . . . . . 1 Investigation Status 1 | . . . 1 . . . . . . . Recall Investigation 1 | . . . 1 . . . . . . . Registered Components 1 | . . . . . . 1 . . . . Zone Layout 1 | . . 1 . . . . . . . . Fabricator Hacks . | . . . . . . . . . . . Repair Station Hacks . | . . . . . . . . . . . Recycling Unit Hacks . | . . . . . . . . . . . Scanalyzer . | . . . . . . . . . . . Garrison Access Hacks . | . . . . . . . . . . . Unauthorized Hacks . | . . . . . . . . . . . Terminals . | . . . . . . . . . . . Fabricators . | . . . . . . . . . . . Repair Stations . | . . . . . . . . . . . Recycling Units . | . . . . . . . . . . . Scanalyzers . | . . . . . . . . . . . Garrison Access . | . . . . . . . . . . . Data Cores Recovered 1 | . . . . . . . . 1 . . Used 1 | . . . . . . . . 1 . . Hacking Detections 7 | . . . 1 . . 3 1 2 . . Full Trace Events 1 | . . . . . . 1 . . . . Feedback Events . | . . . . . . . . . . . Feedback Blocked . | . . . . . . . . . . . Robot Schematics Acquired . | . . . . . . . . . . . Robots Built . | . . . . . . . . . . . Authchips . | . . . . . . . . . . . Time . | . . . . . . . . . . . Total Robot Build Rating . | . . . . . . . . . . . Part Schematics Acquired . | . . . . . . . . . . . Parts Built . | . . . . . . . . . . . Authchips . | . . . . . . . . . . . Time . | . . . . . . . . . . . Total Part Build Rating . | . . . . . . . . . . . Part Studies Acquired . | . . . . . . . . . . . Parts Repaired . | . . . . . . . . . . . Time . | . . . . . . . . . . . Parts Recycled . | . . . . . . . . . . . Recycled Matter . | . . . . . . . . . . . Retrieved Matter . | . . . . . . . . . . . Retrieved Components . | . . . . . . . . . . . Parts Scanalyzed . | . . . . . . . . . . . Part Schematics Acquired . | . . . . . . . . . . . Parts Damaged . | . . . . . . . . . . . Bothacking | -11 -10 -9 -8 -7 -7 -7 -6 -5 -5 -5 ------------ Run | Yrd Mat Mat Mat Fac Was Fac Fac Fac Was Fac Used RIF Installer . | . . . . . . . . . . . Robots Hacked . | . . . . . . . . . . . Non-combat . | . . . . . . . . . . . Combat . | . . . . . . . . . . . Robot Hacks Applied . | . . . . . . . . . . . Relay Couplers Released . | . . . . . . . . . . . Fabnet Peak Effective % . | . . . . . . . . . . . Robots Rewired . | . . . . . . . . . . . Allies Hacked . | . . . . . . . . . . . Hacks Repelled . | . . . . . . . . . . . Allies | -11 -10 -9 -8 -7 -7 -7 -6 -5 -5 -5 -------- Run | Yrd Mat Mat Mat Fac Was Fac Fac Fac Was Fac Total Allies . | . . . . . . . . . . . Largest Group . | . . . . . . . . . . . Highest-Rated Group . | . . . . . . . . . . . Highest-Rated Ally . | . . . . . . . . . . . Total Orders . | . . . . . . . . . . . Ally Attacks . | . . . . . . . . . . . Total Damage . | . . . . . . . . . . . Kills . | . . . . . . . . . . . Allies Corrupted . | . . . . . . . . . . . Allies Melted . | . . . . . . . . . . . Intel | -11 -10 -9 -8 -7 -7 -7 -6 -5 -5 -5 ------- Run | Yrd Mat Mat Mat Fac Was Fac Fac Fac Was Fac Active Infowar (turns) 435 | . 162 . . . . . 2 114 26 131 Optics 139 | . . . . . . . 2 114 23 . Sensors 181 | . . . . . . . . 28 26 127 Terrain 162 | . 162 . . . . . . . . . Jamming 4 | . . . . . . . . . . 4 Robot Analysis Total . | . . . . . . . . . . . Derelict Logs Recovered . | . . . . . . . . . . . Drone Launches . | . . . . . . . . . . . Drone Recoveries . | . . . . . . . . . . . Exploration | -11 -10 -9 -8 -7 -7 -7 -6 -5 -5 -5 ------------- Run | Yrd Mat Mat Mat Fac Was Fac Fac Fac Was Fac Turns Passed 3662 | 57 280 359 1067 1128 86 219 99 114 26 227 Spaces Moved 2870 | 40 139 151 462 516 114 401 289 313 86 359 Core 156 | 5 . . . 4 91 . . . . 56 Treads 1044 | . . 151 462 431 . . . . . . Legs 255 | 35 139 . . 81 . . . . . . Wheels . | . . . . . . . . . . . Hover 263 | . . . . . 23 240 . . . . Flight 1152 | . . . . . . 161 289 313 86 303 Fastest Speed 27 | 50 120 160 160 100 50 32 27 27 28 30 Average Speed 94 | 113 120 160 164 170 69 48 28 27 29 38 Slowest Speed 250 | 120 120 160 240 245 150 60 32 29 37 250 Overloaded Moves 74 | . . . . . . . . . . 74 Propulsion Burnouts . | . . . . . . . . . . . Robots Hopped 8 | . . . . . . 3 3 . . 2 Potential Cave-ins . | . . . . . . . . . . . Cave-ins Triggered . | . . . . . . . . . . . Exploration Rate (%) 30 | 4 40 17 55 14 72 12 10 14 91 11 Regions Visited 10 Branch Regions . Pre-discovered Areas . | . . . . . . . . . . . Known Exits Taken . | . . . . . . . . . . . Unknown Exits Taken 6 | 1 1 1 1 . . 1 1 . . . Scrap Searched . | . . . . . . . . . . . Spaces Dug . | . . . . . . . . . . . Terrain Destroyed 63 | . . . 43 20 . . . . . . Melee . | . . . . . . . . . . . Projectile . | . . . . . . . . . . . AOE 63 | . . . 43 20 . . . . . . Terrain Rammed . | . . . . . . . . . . . Walls Destroyed . | . . . . . . . . . . . Machines Disabled . | . . . . . . . . . . . Actions | -11 -10 -9 -8 -7 -7 -7 -6 -5 -5 -5 --------- Run | Yrd Mat Mat Mat Fac Was Fac Fac Fac Was Fac Total 3445 | 48 203 215 643 647 121 415 297 335 86 435 Wait 125 | 1 18 7 30 14 . . . 5 . 50 Move 2847 | 39 138 150 461 516 113 395 282 313 85 355 Hop 7 | . . . . . . 2 3 . . 2 Pick Up 69 | 2 3 11 27 11 2 4 3 3 1 2 Fast Attach 35 | 5 3 1 3 7 . 5 2 3 . 6 Attach 33 | . 2 4 6 9 3 2 1 1 . 5 Detach 5 | . . . 1 1 1 1 . 1 . . Swap 30 | 1 1 5 11 7 . . 2 3 . . Drop 53 | . 2 7 18 14 2 2 2 4 . 2 Fire 190 | . 36 30 57 53 . 4 2 2 . 6 Melee 43 | . . . 28 15 . . . . . . Ram 7 | . . . . . . . . . . 7 Kick . | . . . . . . . . . . . Crush 1 | . . . 1 . . . . . . . Escape Stasis . | . . . . . . . . . . . Rewire . | . . . . . . . . . . . Trap . | . . . . . . . . . . . Miscellaneous . | . . . . . . . . . . . Route ------- -11/Scrapyard -10/Materials -9/Materials -8/Materials -7/Factory -7/Waste -7/Factory -6/Factory -5/Factory -5/Waste -5/Factory History --------- Turn | Location | Event 32 | -11/Scrapyard | Discovered new exit (range 15) 58 | -11/Scrapyard | Entered Materials 290 | -10/Materials | Discovered new exit (range 16) 301 | -10/Materials | Build established: Mutant 338 | -10/Materials | Entered another Materials area 338 | -9/Materials | Evolved 2 slots: Power x1, Utility x1 518 | -9/Materials | Discovered new exit (range 13) 697 | -9/Materials | Entered another Materials area 697 | -8/Materials | Evolved 2 slots: Propulsion x1, Weapon x1 1486 | -8/Materials | Garrison activated, responded to threat 1723 | -8/Materials | Discovered new exit (range 6) 1764 | -8/Materials | Entered Factory 1764 | -7/Factory | Evolved 2 slots: Utility x1, Weapon x1 2243 | -7/Factory | Build established: Tank 2495 | -7/Factory | Cargo convoy interrupted 2703 | -7/Factory | Lost 10 parts (2p3n2u3w) 2765 | -7/Factory | Lost 3 parts (1p1n1w) 2892 | -7/Factory | Sucked down chute 2892 | -7/Factory | Entered Waste 2893 | -7/Waste | Core integrity fell below 50% 2907 | -7/Waste | EMP discharged 2907 | -7/Waste | System corruption reached 10% 2928 | -7/Waste | Spotted C-40 Crusher 2932 | -7/Waste | Spotted C-40 Crusher 2933 | -7/Waste | Spotted C-40 Crusher 2937 | -7/Waste | Spotted C-40 Crusher 2940 | -7/Waste | Spotted C-40 Crusher 2952 | -7/Waste | Discovered new exit (range 16) 2953 | -7/Waste | Spotted C-40 Crusher 2978 | -7/Waste | Entered Factory 2984 | -7/Factory | Build established: Mutant 3128 | -7/Factory | Discovered new exit (range 8) 3197 | -7/Factory | Entered another Factory area 3197 | -6/Factory | Evolved 2 slots: Propulsion x1, Utility x1 3292 | -6/Factory | Discovered new exit (range 9) 3296 | -6/Factory | Entered another Factory area 3296 | -5/Factory | Evolved 2 slots: Power x1, Propulsion x1 3404 | -5/Factory | Discovered new exit (range 6) 3410 | -5/Factory | Sucked down chute 3410 | -5/Factory | Entered Waste 3412 | -5/Waste | Spotted C-40 Crusher 3420 | -5/Waste | Spotted C-40 Crusher 3420 | -5/Waste | Spotted C-40 Crusher 3425 | -5/Waste | EMP discharged 3427 | -5/Waste | Spotted C-40 Crusher 3428 | -5/Waste | Spotted C-40 Crusher 3430 | -5/Waste | Spotted C-40 Crusher 3431 | -5/Waste | Crushed by Compactor (1 part destroyed, 2 dropped) 3432 | -5/Waste | Discovered new exit (range 11) 3436 | -5/Waste | Entered Factory 3632 | -5/Factory | Core integrity fell below 50% 3655 | -5/Factory | Core integrity fell below 20% 3663 | -5/Factory | Destroyed by S-27 Virus with Autogun Last Messages --------------- 03614_ Acquired 3 matter. 03616_ Acquired Fusion Compressor. 03619_ Acquired Nuclear Pulse Array. 03621_ Acquired Transmission Jammer. 03629_ Knocked back. 03631_ Slug penetrates Wall. 03631_ Nuclear Pulse Array destroyed. 03631_ Knocked back. 03631_ Acquired 3 matter. 03633_ Critical hit (Destroy). 03633_ Fusion Compressor destroyed. 03633_ Knocked back. 03633_ Acquired 8 matter. 03635_ Cld. VTOL Module destroyed. 03642_ Critical hit (Burn: +37). 03642_ Slug penetrates Neutrino Reactor. 03643_ Acquired Fission Core. 03645_ Slug penetrates Neutrino Reactor. 03649_ Field Propulsion Drive destroyed. 03660_ P-70 Sage resets P-70 Sage, system corruption cleaned. Map ----- +----------------------------------------------------+ | ?????????????????????????????????????????????????? | | ?????????????????????????????????????????????????? | | ?????????????????????????????????????????????????? | | ?????????????????????????????????????????????????? | | ?????????????????????????????????????????????????? | | ?????????????????????????????????????????????????? | | ?????????????????????????????????????????????????? | | ?????????????????????????????????????????????????? | | ?????????????????????????????????????????????????? | | ?????????????????????????????????????????????????? | | ?????????????????????????????????????????????????? | | ?????????????????????????????????????????????????? | | ?????????????????????????????????????????????????? | | ?????????????????????????????????????????????????? | | ?????????????????????????????????????????????????? | | ?????????????????????????????????????????????????? | | ?????????????????????????????????????????????????? | | ????????????????????????????????????? #??????????? | | ???????????????????????????????????? #??????????? | | ?????????????""???????????????????? +??????????? | | ?????????????"""?????????????????? #??????????? | | ????????????? ????????????????? #??????????? | | ?????????????""""?############### ###????????? | | ???????????? """"?# ???????? | | ???????????# """" # A ????????? | | ???????????# """" # @ """???????????? | | ?????? ????# + """???????????? | | ?????? ???# * # s wm R """???????????? | | ##### ""???# ! # s ###+##### ??????? | | *# """??########s # ]#????"" "?????????? | | # """ ?# sp p # "" #?????????????????? | | ""= # # k s # "Y #?????????????????? | | """[# """ # # "" #?????????????????? | | """ # """ + # #?????????????????? | | "" # """ # # #?????????????????? | | "" # ?# s # [ #?????????????????? | | ######## s # #?????????????????? | | """ # # "" #?????????????????? | | """ # # "" #?????????????????? | | """ # + """ !#?????????????????? | | "" / # """ #?????????????????? | | "" # # """ #?????????????????? | | # ######### # #?????????????????? | | +#### #???????# ########?????????????????? | | #???????# #?###########????????????? | | #???????# #?# #????????????? | | #???????# #?# #????????????? | | #???????# #?# #????????????? | | #?????### ### """ """ #????????????? | | #######/####????# # """ """ #????????????? | +----------------------------------------------------+ Best States ------------- Heat Dissipation 54 Energy Generation 27 Energy Capacity 680 Matter Stores 300 Matter Capacity 300 Sight Range 22 Robot Scan Range 16 Terrain Scan Range 14 Terrain Scan Density 10 Jamming Range 12 Armor Coverage 225 Evasion (%) 64 Target Analysis 5 Recoil Reduction 3 Offensive Hacking 10 Item Schematics ----------------- None Robot Schematics ------------------ None Fabricated ------------ Nothing Repaired ---------- Nothing Studied --------- None Alien Tech Used ----------------- None Achievements -------------- Jackpot More Dakka Please Well Done Challenges ------------ None Game ------ Seed WarlordAluminumSource Manual? 0 Play Time 01:38:24 Cumulative 33.5 hours Start 2025.11.10 @ 20:39:10 End 2025.11.11 @ 19:59:17 Sessions 5 Manual Loads 0 Difficulty Rogue Special Mode None Game No. 29 Rogue 29 Adventurer 0 Explorer 0 Win Type - Total 0 Types 0/0/0/0/0/0/0/0/0/0 Lore% 11 Gallery% 27 Achievement% 18 Wizard Run 0 Options --------- Layout 0 ASCII 0 Keyboard 0 Movement Numpad Keybinds 0 Fullscreen 2 Font 24/Smallcaps Map View 113x50 Zoom Use 0% Tactical HUD 1 Map Filters NONE Filters NONE Steam 1 RUN: 402dc108-8bf0-4e6e-ae8c-a155fbeae219